bitfinex-derivatives/quotes_SOLF0:USTF0_20260215
["timestamp","ask_amount","ask_price","bid_price","bid_amount"]
[1771114434787,9.47348701,87.879,87.831,4.38298278]
[1771114436381,9.47348701,87.879,87.836,4.33897237]
[1771114436581,9.47348701,87.879,87.793,34.15]
[1771114436582,9.47348701,87.894,87.85,2.42234808]
[1771114439993,9.47348701,87.892,87.85,2.42234808]
[1771114440592,9.47348701,87.892,87.841,4.33897237]
[1771114441692,9.47348701,87.892,87.796,34.15]
[1771114441693,9.47348701,87.879,87.82,2.42234808]
[1771114442894,9.47348701,87.877,87.82,2.42234808]
[1771114443788,2.42234808,87.88,87.82,2.42234808]
[1771114443789,9.47348701,87.874,87.82,2.42234808]
[1771114445892,9.47348701,87.874,87.82,7.03567219]
[1771114446192,9.47348701,87.874,87.83,2.42234808]
[1771114447797,9.47348701,87.871,87.83,2.42234808]
[1771114448699,9.47348701,87.871,87.821,4.61332411]
[1771114448897,9.47348701,87.871,87.83,2.42234808]
[1771114449099,9.47348701,87.869,87.82,2.42234808]
[1771114450589,9.47348701,87.865,87.82,2.42234808]
[1771114452002,9.47348701,87.862,87.82,2.42234808]
[1771114452393,9.47348701,87.858,87.81,2.42234808]
[1771114452593,9.47348701,87.858,87.82,2.42234808]
[1771114453190,9.47348701,87.858,87.81,2.42234808]
[1771114453398,9.07524156,87.853,87.8,2.42234808]
[1771114453598,9.07524156,87.853,87.798,4.44268733]
[1771114454695,2.42234808,87.86,87.798,4.44268733]
[1771114454696,9.07524156,87.849,87.798,4.44268733]
[1771114454894,9.07524156,87.849,87.8,2.4201189]
[1771114455091,9.07524156,87.849,87.8,6.98677816]
[1771114455295,9.07524156,87.849,87.81,2.4201189]
[1771114455497,9.07524156,87.849,87.82,2.4201189]
[1771114455800,9.07524156,87.849,87.81,2.4201189]
[1771114456701,9.07524156,87.865,87.83,2.4201189]
[1771114459401,9.07524156,87.865,87.821,14.84644208]
[1771114460403,9.07524156,87.865,87.822,4.49690753]
[1771114463903,10.247,87.879,87.831,4.62106254]
[1771114464108,9.07524156,87.881,87.84,2.4201189]
[1771114464402,9.07524156,87.881,87.85,2.4201189]
[1771114465108,9.07524156,87.897,87.85,2.4201189]
[1771114467705,9.07524156,87.897,87.86,2.4201189]
[1771114471015,9.07524156,87.897,87.852,5.19345148]
[1771114474921,9.07524156,87.897,87.86,2.4201189]
[1771114477224,9.07524156,87.897,87.852,5.19345148]
[1771114480535,9.15001746,87.909,87.86,2.4201189]
[1771114480734,9.15001746,87.909,87.87,2.4201189]
[1771114481736,9.15001746,87.909,87.87,8.20936155]
[1771114489343,9.15001746,87.909,87.822,28.33861404]
[1771114489344,8.87209838,87.889,87.831,8.00940693]
[1771114490439,8.87209838,87.889,87.84,2.4201189]
[1771114490637,8.87209838,87.889,87.841,8.14750489]
[1771114490945,8.87209838,87.888,87.841,8.14750489]
[1771114492742,2.4201189,87.9,87.841,8.14750489]
[1771114492743,8.87209838,87.885,87.841,8.14750489]
[1771114494235,8.87209838,87.885,87.816,8.25925435]
[1771114494545,159.2205,87.977,87.713,159.699]
[1771114494546,8.87209838,87.859,87.801,8.25925435]
[1771114494845,8.87209838,87.859,87.745,20.5252]
[1771114494846,8.87209838,87.859,87.811,8.2663426]
[1771114495640,8.87209838,87.87,87.83,2.4201189]
[1771114496041,8.87209838,87.87,87.831,8.37466282]
[1771114496738,90.76,87.9,87.84,2.4201189]
[1771114496739,8.87209838,87.884,87.84,2.4201189]
[1771114496939,8.87209838,87.884,87.841,8.38220004]
[1771114500540,2.4201189,87.9,87.841,8.38220004]
[1771114500541,8.87209838,87.899,87.841,8.38220004]
[1771114500844,8.87209838,87.899,87.85,2.4201189]
[1771114501048,8.87209838,87.899,87.841,8.38220004]
[1771114501049,8.87209838,87.919,87.87,2.4201189]
[1771114501247,8.87209838,87.919,87.871,8.2993402]
[1771114502446,8.87209838,87.939,87.881,8.2837896]
[1771114503245,8.87209838,87.929,87.881,8.2837896]
[1771114504848,2.4201189,87.92,87.852,8.16735188]
[1771114505052,90.76,87.947,87.852,8.16735188]
[1771114505053,8.87209838,87.909,87.852,8.16735188]
[1771114507350,8.87209838,87.907,87.852,8.16735188]
[1771114507742,8.87209838,87.907,87.839,8.35131599]
[1771114508049,159.2253,87.975,87.831,8.35131599]
[1771114508050,8.87209838,87.889,87.831,8.35131599]
[1771114509555,8.87209838,87.889,87.841,8.363855]
[1771114509756,8.87209838,87.889,87.85,2.4201189]
[1771114510148,8.87209838,87.908,87.86,2.4201189]
[1771114510354,8.87209838,87.908,87.87,2.4201189]
[1771114512052,8.87209838,87.932,87.89,2.4201189]
[1771114512247,8.87209838,87.946,87.901,8.47629586]
[1771114512448,8.87209838,87.969,87.92,2.4201189]
[1771114512645,8.87209838,87.969,87.91,10.89641476]
[1771114513647,8.87209838,87.969,87.911,8.47771285]
[1771114513853,2.4201189,87.98,87.911,8.47771285]
[1771114513854,9.45877361,87.967,87.911,8.47771285]
[1771114514455,9.45877361,87.967,87.914,8.30337724]
[1771114514655,9.45877361,87.967,87.92,2.4201189]
[1771114515955,9.45877361,87.982,87.931,8.3382119]
[1771114516154,9.45877361,87.982,87.95,2.4201189]
[1771114516358,9.45877361,87.999,87.96,2.4201189]
[1771114516756,9.45877361,88.019,87.97,2.4201189]
[1771114516957,9.45877361,88.019,87.97,2.41098243]
[1771114517764,9.45877361,88.019,87.96,12.64838243]
[1771114518456,9.45877361,88.019,87.97,2.41098243]
[1771114519156,9.45877361,88.019,87.96,2.41098243]
[1771114520359,2.41098243,88.02,87.951,8.34401789]
[1771114520360,9.45877361,88.017,87.951,8.34401789]
[1771114520756,9.45877361,88.017,87.96,2.41098243]
[1771114522963,9.45877361,88.015,87.961,8.27534155]
[1771114523860,302.64783932,88.024,87.961,8.27534155]
[1771114523861,9.45877361,88.013,87.961,8.27534155]
[1771114525969,9.45877361,88.013,87.97,2.41098243]
[1771114526260,9.45877361,87.999,87.95,2.41098243]
[1771114526463,9.45877361,87.999,87.96,2.41098243]
[1771114526861,9.45877361,87.999,87.951,8.27373797]
[1771114528269,9.45877361,88.012,87.961,8.19414403]
[1771114528472,9.45877361,88.012,87.97,2.41098243]
[1771114528870,19.69027361,88.012,87.97,2.41098243]
[1771114529369,19.69027361,88.012,87.922,34.16]
[1771114529370,9.45877361,88.025,87.98,10.61008642]
[1771114530165,9.45877361,88.024,87.97,2.41098243]
[1771114533072,9.45877361,88.024,87.972,8.01644899]
[1771114533469,9.45877361,88.037,87.991,8.01644899]
[1771114533672,9.45877361,88.037,88.0,2.41098243]
[1771114533874,9.45877361,88.037,87.991,8.01644899]
[1771114535370,9.45877361,88.037,88.0,2.41098243]
[1771114535576,9.45877361,88.053,88.001,8.1828869]
[1771114537380,9.45877361,88.053,88.01,2.41098243]
[1771114537776,9.45877361,88.053,88.01,10.58216322]
[1771114538881,9.45877361,88.053,88.01,8.17118079]
[1771114539681,9.45877361,88.053,88.005,10.2323]
[1771114539875,9.45877361,88.053,87.997,8.04442042]
[1771114540685,9.86688966,88.052,87.983,8.03909173]
[1771114540877,9.86688966,88.052,87.964,8.03875676]
[1771114541283,9.86688966,88.05,87.964,8.03875676]
[1771114541482,9.86688966,88.026,87.971,10.2362]
[1771114542280,9.86688966,88.026,87.972,8.09705341]
[1771114542686,9.86688966,88.022,87.972,8.09705341]
[1771114543777,9.12526782,88.019,87.972,8.09705341]
[1771114544784,9.12526782,88.017,87.972,8.09705341]
[1771114546583,10.2296,88.028,87.972,8.09705341]
[1771114546784,9.12526782,88.029,87.972,8.09705341]
[1771114548586,9.12526782,88.027,87.944,8.12913075]
[1771114549787,9.12526782,88.022,87.96,8.31072043]
[1771114550790,9.12526782,88.015,87.96,8.31072043]
[1771114551184,9.12526782,88.015,87.946,8.31471788]
[1771114551379,9.12526782,88.009,87.948,18.55351788]
[1771114551588,9.12526782,88.009,87.949,8.31471788]
[1771114552192,9.12526782,88.007,87.939,8.19405519]
[1771114552581,10.2334,87.996,87.939,8.19405519]
[1771114552785,34.16,88.029,87.939,8.19405519]
[1771114552786,9.12526782,87.995,87.939,8.19405519]
[1771114553892,9.12526782,87.992,87.939,18.43395519]
[1771114554286,9.12526782,87.992,87.94,8.1620178]
[1771114554684,10.2327,88.002,87.942,8.16538616]
[1771114554987,9.12526782,88.006,87.942,8.16538616]
[1771114555787,9.12526782,88.006,87.96,10.2375]
[1771114555988,9.12526782,88.006,87.961,8.14058145]
[1771114556895,9.12526782,88.02,87.964,8.14418554]
[1771114558996,19.35616782,88.017,87.964,8.14418554]
[1771114559997,9.12526782,88.02,87.973,8.14663401]
[1771114560594,9.12526782,88.02,87.987,10.2343]
[1771114561701,9.12526782,88.02,87.913,35.30650565]
[1771114561702,9.12526782,88.053,88.01,2.40997183]
[1771114562600,9.12526782,88.053,88.01,10.56398345]
[1771114562794,9.12526782,88.053,88.01,2.40997183]
[1771114562991,9.12526782,88.053,88.0,10.2328]
[1771114563195,9.12526782,88.053,88.001,8.15727871]
[1771114563798,9.12526782,88.053,87.972,90.68]
[1771114564095,8.88956011,88.052,87.958,7.8953727]
[1771114564303,9.12526782,88.051,87.958,7.8953727]
[1771114564893,9.12526782,88.049,87.958,7.8953727]
[1771114565095,9.12526782,88.047,87.958,7.8953727]
[1771114565395,9.12526782,88.045,87.958,7.8953727]
[1771114565596,9.12526782,88.043,87.958,7.8953727]
[1771114565798,9.12526782,88.026,87.965,8.25025574]
[1771114566597,9.12526782,88.024,87.952,18.49164049]
[1771114567505,9.12526782,88.014,87.953,8.25344405]
[1771114567699,9.12526782,88.014,87.938,8.2733233]
[1771114568600,134.48,88.013,87.938,8.2733233]
[1771114568805,9.12526782,87.994,87.938,8.2733233]
[1771114571011,9.12526782,87.994,87.943,10.2395]
[1771114571209,9.12526782,87.994,87.912,7.46506318]
[1771114571810,9.12526782,87.984,87.914,10.2428]
[1771114572504,9.12526782,87.977,87.918,7.50153042]
[1771114573811,9.12526782,87.977,87.92,7.53549948]
[1771114575508,9.12526782,87.977,87.923,10.2418]
[1771114576513,9.12526782,87.977,87.923,17.76585444]
[1771114576712,9.12526782,87.977,87.924,7.52676678]
[1771114577508,9.29966667,87.988,87.924,7.52676678]
[1771114578021,10.2346,87.986,87.924,7.52676678]
[1771114578209,9.29966667,87.985,87.913,10.243]
[1771114578514,9.29966667,87.985,87.913,17.77859022]
[1771114578709,9.29966667,87.983,87.914,7.53824874]
[1771114579112,9.29966667,87.983,87.907,10.2437]
[1771114579312,9.29966667,87.977,87.908,7.53833049]
[1771114580815,9.29966667,87.975,87.911,7.42499926]
[1771114581813,9.29966667,87.973,87.913,7.52362101]
[1771114582316,19.53606667,87.97,87.913,7.52362101]
[1771114582515,9.29966667,87.969,87.913,7.52362101]
[1771114583016,9.29966667,87.969,87.916,7.52609288]
[1771114583814,9.29966667,87.969,87.929,10.2411]
[1771114584020,9.29966667,87.969,87.916,7.52609288]
[1771114584918,9.29966667,87.969,87.92,2.41321041]
[1771114585508,9.29966667,87.969,87.925,10.2416]
[1771114585713,9.29966667,87.988,87.931,7.55165155]
[1771114586217,9.29966667,87.988,87.94,2.41321041]
[1771114586917,9.29966667,87.988,87.931,17.79245155]
[1771114587314,9.29966667,87.988,87.932,7.33302579]
[1771114588218,9.29966667,87.988,87.93,2.41321041]
[1771114588219,9.29966667,87.988,87.937,7.06438339]
[1771114588419,9.29966667,87.988,87.941,7.06438339]
[1771114592414,9.29966667,87.999,87.96,2.41321041]
[1771114592608,9.29966667,88.012,87.98,2.41321041]
[1771114593718,9.29966667,88.012,87.97,2.41321041]
[1771114594619,9.29966667,88.009,87.95,2.41321041]
[1771114595918,9.29966667,88.007,87.95,2.41321041]
[1771114597221,9.29966667,88.005,87.948,10.2388]
[1771114597512,34.16,88.049,87.94,2.41321041]
[1771114597513,9.29966667,87.999,87.94,2.41321041]
[1771114598819,9.29966667,87.993,87.94,2.41321041]
[1771114600116,9.29966667,87.993,87.947,7.62454581]
[1771114600421,9.29966667,87.993,87.951,7.61856943]
[1771114601319,9.29966667,87.993,87.952,10.2384]
[1771114601724,10.2323,88.005,87.953,7.62224385]
[1771114601913,2.41321041,88.02,87.953,7.62224385]
[1771114601914,10.2327,88.002,87.953,7.62224385]
[1771114602119,20.09226267,88.002,87.953,7.62224385]
[1771114603014,9.80960763,87.996,87.943,10.2394]
[1771114604820,9.80960763,87.994,87.943,10.2394]
[1771114605016,9.80960763,87.994,87.934,7.57965441]
[1771114605426,9.80960763,87.99,87.934,7.57965441]
[1771114605623,9.80960763,87.99,87.938,7.60312854]
[1771114607726,9.80960763,87.99,87.94,7.62157475]
[1771114608030,90.7,88.016,87.94,7.62157475]
[1771114608031,9.80960763,88.003,87.94,7.62157475]
[1771114608824,9.80960763,88.033,87.952,7.62318782]
[1771114610133,9.80960763,88.033,87.95,6.02886559]
[1771114610134,9.80960763,88.033,87.973,7.51241863]
[1771114610834,9.80960763,88.033,87.978,7.51412121]
[1771114611828,9.80960763,88.048,87.998,7.5339594]
[1771114612432,6.02886559,88.1,87.99,6.02886559]
[1771114612433,9.80960763,88.062,88.002,7.5339594]
[1771114613129,9.80960763,88.062,88.01,7.53554004]
[1771114613431,9.80960763,88.077,88.011,7.53554004]
[1771114613638,9.80960763,88.077,88.015,10.2311]
[1771114614333,6.02886559,88.11,88.011,7.53554004]
[1771114614334,9.80960763,88.074,88.011,7.53554004]
[1771114614533,9.80960763,88.074,88.003,10.2324]
[1771114614829,9.80960763,88.06,87.982,7.47203179]
[1771114615828,9.80960763,88.055,87.984,7.37621495]
[1771114616533,9.80960763,88.052,87.984,7.37621495]
[1771114617537,9.80960763,88.052,87.749,112.980818]
[1771114617538,9.80960763,88.046,87.973,10.236]
[1771114618025,9.80960763,88.046,87.974,8.31566098]
[1771114618830,9.80960763,88.039,87.974,8.31566098]
[1771114619425,9.80960763,88.034,87.974,8.31566098]
[1771114620539,9.80960763,88.031,87.964,8.31439513]
[1771114620738,9.80960763,88.031,87.953,10.2383]
[1771114621034,9.80960763,88.031,87.953,18.55423874]
[1771114621233,9.80960763,88.012,87.953,8.31593874]
[1771114622840,9.80960763,88.012,87.955,8.34169359]
[1771114623441,9.80960763,88.012,87.956,8.34178273]
[1771114627841,9.80960763,88.001,87.942,8.17434299]
[1771114628231,34.16,88.046,87.932,146.24]
[1771114628232,9.80960763,88.015,87.954,8.17434299]
[1771114629835,9.80960763,88.015,87.96,18.42492672]
[1771114630040,9.80960763,88.015,87.961,8.18752672]
[1771114631550,9.80960763,88.013,87.947,8.18901834]
[1771114631841,9.80960763,88.013,87.933,8.19035655]
[1771114632741,9.80960763,87.998,87.938,10.24]
[1771114634048,9.80960763,87.998,87.942,10.2395]
[1771114634249,9.80960763,87.998,87.942,18.75565808]
[1771114634449,9.80960763,87.998,87.943,8.51615808]
[1771114634948,10.2332,87.997,87.946,18.7566859]
[1771114635250,10.06364477,87.996,87.946,18.7566859]
[1771114637150,10.06364477,87.996,87.946,8.5175859]
[1771114638649,10.2344,87.987,87.931,8.44841488]
[1771114638849,10.06364477,87.986,87.931,8.44841488]
[1771114639652,10.06364477,87.986,87.932,10.2407]
[1771114640057,10.06364477,87.986,87.932,18.69780857]
[1771114640360,10.06364477,87.986,87.935,8.45710857]
[1771114641057,10.2347,87.984,87.935,8.45710857]
[1771114641256,94.2,88.012,87.92,8.45829993]
[1771114641461,10.06364477,88.011,87.92,8.45829993]
[1771114641662,10.06364477,87.98,87.926,8.45952104]
[1771114642355,10.06364477,87.98,87.928,8.36675713]
[1771114643764,10.06364477,87.98,87.936,10.2402]
[1771114643958,10.06364477,87.995,87.937,8.2206897]
[1771114644464,10.2322,88.006,87.947,8.2206897]
[1771114644662,10.06364477,88.005,87.947,8.2206897]
[1771114644866,10.06364477,88.005,87.933,8.22190498]
[1771114645165,10.06364477,87.994,87.945,8.22190498]
[1771114646765,10.06364477,87.994,87.946,10.2391]
[1771114646969,10.06364477,87.994,87.95,2.41157556]
[1771114647263,10.06364477,87.99,87.94,2.41157556]
[1771114648165,2.41157556,88.0,87.94,2.41157556]
[1771114648166,10.06364477,87.987,87.94,2.41157556]
[1771114648671,10.06364477,87.987,87.934,8.34543072]
[1771114649369,10.06364477,87.983,87.93,2.41157556]
[1771114649763,10.06364477,87.983,87.93,10.75926929]
[1771114650768,10.06364477,87.983,87.932,10.2408]
[1771114650968,10.06364477,87.983,87.93,10.75926929]
[1771114651571,10.06364477,87.983,87.931,8.35842432]
[1771114651772,10.06364477,87.983,87.94,2.41157556]
[1771114653574,10.235,87.982,87.94,2.41157556]
[1771114653777,10.06364477,87.981,87.94,2.41157556]
[1771114653978,10.06364477,87.981,87.931,8.35842432]
[1771114656279,10.06364477,87.981,87.94,2.41157556]
[1771114656780,10.06364477,87.978,87.931,8.35842432]
[1771114657779,10.06364477,87.978,87.94,2.41157556]
[1771114660683,10.06364477,87.978,87.95,2.41157556]
[1771114660883,10.06364477,87.978,87.94,2.41157556]
[1771114661980,10.2355,87.977,87.94,2.41157556]
[1771114662178,20.26144166,87.977,87.94,2.41157556]
[1771114663081,9.17762817,87.976,87.94,2.41157556]
[1771114663381,9.17762817,87.976,87.918,309.77931235]
[1771114663382,9.17762817,87.973,87.91,2.41157556]
[1771114663575,29.32819779,88.011,87.91,2.41157556]
[1771114663576,9.17762817,87.969,87.91,2.41157556]
[1771114663779,9.17762817,87.953,87.91,2.41157556]
[1771114664879,9.17762817,87.953,87.911,8.50318242]
[1771114665186,9.17762817,87.953,87.92,2.41157556]
[1771114665881,9.17762817,87.97,87.94,2.41157556]
[1771114666886,9.17762817,87.983,87.94,2.41157556]
[1771114667291,9.17762817,87.991,87.96,2.41157556]
[1771114671490,9.17762817,88.006,87.97,2.41157556]
[1771114671793,9.17762817,88.006,87.96,2.41157556]
[1771114672587,9.17762817,87.995,87.95,2.41157556]
[1771114673784,9.17762817,87.991,87.95,2.41157556]
[1771114674291,10.235,87.982,87.934,8.53755569]
[1771114674489,34.16,88.021,87.92,10.2421]
[1771114674490,9.17762817,87.981,87.93,2.41157556]
[1771114674790,9.17762817,87.981,87.94,2.41157556]
[1771114675891,9.17762817,87.978,87.94,2.41157556]
[1771114677183,9.17762817,87.978,87.95,2.41157556]
[1771114677985,10.2342,87.988,87.95,2.41157556]
[1771114678190,9.17762817,87.992,87.96,2.41157556]
[1771114679988,9.17762817,87.992,87.951,8.64989891]
[1771114679989,19.40972817,88.007,87.97,2.41157556]
[1771114680287,10.49784465,88.051,87.918,123.58]
[1771114680288,9.17762817,88.033,87.99,2.41157556]
[1771114681790,10.2292,88.032,87.99,2.41157556]
[1771114681986,9.17762817,88.033,87.99,2.41157556]
[1771114682193,9.17762817,88.033,88.0,2.41157556]
[1771114683497,9.17762817,88.033,87.99,2.41157556]
[1771114684593,9.17762817,88.033,87.98,8.67502365]
[1771114684594,9.17762817,88.033,88.0,2.41157556]
[1771114685292,9.17762817,88.054,88.01,2.41157556]
[1771114685691,9.17762817,88.054,88.011,8.69884713]
[1771114685900,10.2253,88.065,88.03,2.41157556]
[1771114686691,9.17762817,88.068,88.03,2.41157556]
[1771114687992,10.2242,88.075,88.04,2.41157556]
[1771114688201,9.17762817,88.081,88.03,2.41157556]
[1771114688395,9.17762817,88.081,88.02,2.41157556]
[1771114689801,9.17762817,88.076,88.02,2.41157556]
[1771114690202,9.17762817,88.076,88.03,2.41157556]
[1771114690407,9.17762817,88.076,88.04,2.41157556]
[1771114690596,9.17762817,88.076,88.03,2.41157556]
[1771114691199,9.17762817,88.074,88.03,2.41157556]
[1771114691395,9.17762817,88.074,88.02,2.41157556]
[1771114691601,9.17762817,88.074,88.03,2.41157556]
[1771114692603,9.17762817,88.091,88.04,2.41157556]
[1771114692904,9.17762817,88.091,88.05,2.41157556]
[1771114693803,9.92389282,88.105,88.06,2.41157556]
[1771114694699,9.92389282,88.105,88.05,2.41157556]
[1771114694904,10.2208,88.104,88.05,2.41157556]
[1771114695101,9.92389282,88.103,88.05,2.41157556]
[1771114695299,9.92389282,88.101,88.037,9.43319391]
[1771114695504,9.92389282,88.101,88.05,2.41157556]
[1771114695704,9.92389282,88.101,88.06,2.41157556]
[1771114697204,9.92389282,88.101,88.05,2.41157556]
[1771114697992,10.49784465,88.175,88.08,2.41157556]
[1771114698197,9.92389282,88.132,88.09,2.41157556]
[1771114698605,9.92389282,88.132,88.1,2.41157556]
[1771114699097,9.92389282,88.128,88.08,2.41157556]
[1771114699403,9.92389282,88.152,88.1,2.41157556]
[1771114699599,9.92389282,88.149,88.09,2.41157556]
[1771114700299,12.33546838,88.14,88.08,2.41157556]
[1771114700493,2.41157556,88.12,88.05,2.41157556]
[1771114700697,9.92389282,88.095,88.044,9.71916334]
[1771114701798,9.92389282,88.091,88.044,9.71916334]
[1771114702697,10.2225,88.09,88.044,9.71916334]
[1771114702897,9.92389282,88.089,88.04,2.40656016]
[1771114703302,9.92389282,88.077,88.03,2.40656016]
[1771114704195,9.92389282,88.075,88.03,2.40656016]
[1771114704395,9.92389282,88.075,87.999,10.2329]
[1771114704396,9.92389282,88.069,87.998,9.62324951]
[1771114704598,9.92389282,88.069,88.01,2.40656016]
[1771114705005,9.92389282,88.069,87.998,9.62324951]
[1771114705694,90.6,88.078,87.998,9.62324951]
[1771114705695,20.14999282,88.059,87.998,9.62324951]
[1771114706198,9.92389282,88.058,87.998,9.62324951]
[1771114708301,10.2261,88.059,88.0,9.60999312]
[1771114709802,9.92389282,88.049,88.0,9.60999312]
[1771114710203,9.92389282,88.077,88.0,9.60999312]
[1771114711707,10.2262,88.058,88.0,9.60999312]
[1771114712613,9.92389282,88.064,88.0,9.60999312]
[1771114715815,9.92389282,88.064,88.012,9.57374807]
[1771114718116,9.92389282,88.064,88.015,9.56957063]
[1771114719212,9.92389282,88.061,88.015,9.56957063]
[1771114723624,9.92389282,88.061,88.019,10.2306]
[1771114724122,9.92389282,88.061,88.02,9.57188949]
[1771114725416,9.92389282,88.061,88.019,10.2306]
[1771114726422,9.43417262,88.074,88.026,9.57188949]
[1771114726923,9.43417262,88.074,88.04,2.40713933]
[1771114728223,9.43417262,88.074,88.034,9.57188949]
[1771114729718,9.43417262,88.074,88.04,2.40713933]
[1771114729913,10.2225,88.09,88.04,2.40713933]
[1771114730224,9.43417262,88.09,88.041,9.51630438]
[1771114730422,9.43417262,88.09,88.05,2.40713933]
[1771114731222,9.43417262,88.09,88.051,9.516687]
[1771114731421,10.2214,88.099,88.06,2.40713933]
[1771114731729,9.43417262,88.098,88.051,9.516687]
[1771114732425,9.43417262,88.095,88.05,2.40713933]
[1771114733830,9.43417262,88.093,88.05,2.40713933]
[1771114734027,9.43417262,88.093,88.04,2.40713933]
[1771114735123,9.43417262,88.093,88.05,2.40713933]
[1771114735732,9.43417262,88.091,88.05,2.40713933]
[1771114739826,9.43417262,88.089,88.05,2.40713933]
[1771114740731,10.2227,88.088,88.05,2.40713933]
[1771114740929,9.43417262,88.087,88.05,2.40713933]
[1771114741823,9.43417262,88.1,88.06,11.93438283]
[1771114742127,9.43417262,88.115,88.08,2.40713933]
[1771114742627,9.43417262,88.113,88.07,2.40713933]
[1771114742824,9.43417262,88.113,88.061,9.5272435]
[1771114743632,9.43417262,88.109,88.06,12.63293933]
[1771114744534,10.2204,88.108,88.06,2.40713933]
[1771114744724,9.43417262,88.107,88.06,2.40713933]
[1771114745527,9.43417262,88.107,88.07,2.40713933]
[1771114746629,10.2206,88.106,88.06,2.40713933]
[1771114746829,9.43417262,88.105,88.05,12.63413933]
[1771114747338,9.43417262,88.105,88.06,2.40713933]
[1771114755130,9.13079405,88.103,88.06,2.40713933]
[1771114756038,9.13079405,88.103,88.07,2.40713933]
[1771114756736,9.13079405,88.103,88.08,2.40713933]
[1771114756937,10.2195,88.115,88.08,2.40713933]
[1771114757241,9.13079405,88.114,88.08,2.40713933]
[1771114757432,9.13079405,88.114,88.07,2.40713933]
[1771114757634,9.13079405,88.112,88.07,2.40713933]
[1771114759245,175.37421658,88.121,88.027,28.33861404]
[1771114759246,185.59301658,88.121,88.09,2.40713933]
[1771114760340,175.37421658,88.121,88.1,2.40713933]
[1771114760540,175.37421658,88.121,88.11,2.40713933]
[1771114760740,175.37421658,88.121,88.083,19.38260607]
[1771114760741,175.37421658,88.121,88.1,2.40713933]
[1771114760935,9.13079405,88.146,88.11,2.40713933]
[1771114762550,9.13079405,88.146,88.12,2.40713933]
[1771114762744,9.13079405,88.146,88.11,2.40713933]
[1771114763045,9.13079405,88.146,88.11,2.40282586]
[1771114771850,9.13079405,88.146,88.111,10.22]
[1771114772552,9.13079405,88.165,88.12,2.40282586]
[1771114774055,9.13079405,88.162,88.12,2.40282586]
[1771114774662,9.13079405,88.162,88.13,2.40282586]
[1771114775458,9.13079405,88.195,88.15,2.40282586]
[1771114775761,9.13079405,88.195,88.14,2.40282586]
[1771114776264,9.13079405,88.195,88.15,2.40282586]
[1771114776864,9.13079405,88.195,88.16,2.40282586]
[1771114777255,9.13079405,88.195,88.152,7.09035324]
[1771114777961,9.13079405,88.195,88.16,2.40282586]
[1771114781461,9.80506835,88.209,88.17,2.40282586]
[1771114781666,9.80506835,88.226,88.18,2.40282586]
[1771114781861,9.80506835,88.226,88.19,2.40282586]
[1771114782065,2.40282586,88.25,88.19,2.40282586]
[1771114782267,9.80506835,88.249,88.2,2.40282586]
[1771114783467,9.80506835,88.249,88.21,2.40282586]
[1771114783771,9.80506835,88.249,88.22,2.40282586]
[1771114784276,10.12813817,88.279,88.23,2.40282586]
[1771114784662,10.12813817,88.279,88.24,2.40282586]
[1771114785069,3.817e-05,88.279,88.25,2.40282586]
[1771114785269,2.40282586,88.31,88.25,2.40282586]
[1771114785765,185.98,88.316,88.25,2.40282586]
[1771114785961,2.40282586,88.33,88.26,2.40282586]
[1771114786164,188.66282586,88.33,88.27,2.40282586]
[1771114787180,10.12813817,88.316,88.27,2.40282586]
[1771114787475,10.12813817,88.316,88.257,9.54143745]
[1771114787770,10.12813817,88.316,88.27,2.40282586]
[1771114788866,10.12813817,88.316,88.226,90.48]
[1771114788867,10.12813817,88.316,88.28,2.40282586]
[1771114789072,10.12813817,88.334,88.28,2.40282586]
[1771114789474,10.12813817,88.334,88.271,9.54143745]
[1771114789876,10.12813817,88.329,88.271,9.54143745]
[1771114790768,10.12813817,88.326,88.271,9.54143745]
[1771114790972,10.12813817,88.326,88.27,2.40282586]
[1771114791677,10.12813817,88.321,88.27,2.40282586]
[1771114794770,10.12813817,88.321,88.271,9.54143745]
[1771114795077,10.12813817,88.335,88.29,2.40282586]
[1771114795569,10.12813817,88.335,88.271,9.54143745]
[1771114795774,10.1942,88.334,88.28,2.40282586]
[1771114795983,10.12813817,88.333,88.28,2.40282586]
[1771114796179,10.12813817,88.321,88.28,2.40282586]
[1771114796481,10.12813817,88.321,88.271,9.54143745]
[1771114797281,10.12813817,88.321,88.28,2.40282586]
[1771114800384,10.12813817,88.316,88.27,2.40282586]
[1771114800686,10.12813817,88.299,88.26,2.40282586]
[1771114801186,10.12813817,88.297,88.251,9.54143745]
[1771114801389,10.12813817,88.297,88.23,10.2061]
[1771114801390,10.12813817,88.297,88.24,2.40282586]
[1771114801579,10.12813817,88.295,88.24,2.40282586]
[1771114801779,10.12813817,88.289,88.235,9.54143745]
[1771114801987,10.12813817,88.289,88.23,2.40282586]
[1771114802489,10.12813817,88.288,88.25,2.40282586]
[1771114802689,10.12813817,88.288,88.24,2.40282586]
[1771114803089,10.1996,88.287,88.23,2.40282586]
[1771114803289,10.12813817,88.286,88.23,2.40282586]
[1771114803489,10.12813817,88.279,88.22,2.40282586]
[1771114804587,10.12813817,88.279,88.24,2.40282586]